fUSD/lending_fUSD_20240802
["ID","MTS","AMOUNT","RATE_DAILY","PERIOD"]
[333903944,1722618643888,-455.781378,0.0001863,2]
[333903945,1722618643898,-500.0,0.0001863,2]
[333903946,1722618643907,-455.781378,0.0001863,2]
[333903947,1722618643918,-455.781378,0.0001863,2]
[333903948,1722618643928,-500.0,0.0001863,2]
[333903949,1722618643937,-455.781378,0.0001863,2]
[333903950,1722618643948,-3115.87,0.0001863,2]
[333903951,1722618643957,-455.781378,0.0001863,2]
[333903952,1722618643967,-455.781378,0.0001863,2]
[333903954,1722618643977,-455.781378,0.0001863,2]
[333903956,1722618643988,-540.14,0.0001863,2]
[333903958,1722618643997,-500.0,0.0001863,2]
[333903960,1722618644006,-500.0,0.0001863,2]
[333903962,1722618644016,-455.781378,0.0001863,2]
[333903964,1722618644025,-500.0,0.0001863,2]
[333903966,1722618644035,-455.781378,0.0001863,2]
[333903968,1722618644044,-500.0,0.0001863,2]
[333903970,1722618644054,-1391.77,0.0001863,2]
[333903972,1722618644063,-455.781378,0.0001863,2]
[333903974,1722618644072,-1463.35,0.0001863,2]
[333903976,1722618644082,-562.18,0.0001863,2]
[333903978,1722618644091,-500.0,0.0001863,2]
[333903980,1722618644100,-2214.19,0.0001863,2]
[333903982,1722618644109,-500.0,0.0001863,2]
[333903984,1722618644118,-308.39249307,0.0001863,2]
[333903986,1722618644128,-926.11,0.0001863,2]
[333903988,1722618644138,-500.0,0.0001863,2]
[333903990,1722618644148,-500.0,0.0001863,2]
[333903992,1722618644158,-500.0,0.0001863,2]
[333903994,1722618644167,-1574.68,0.0001863,2]
[333903996,1722618644177,-500.0,0.0001863,2]
[333903998,1722618644187,-500.0,0.0001863,2]
[333904000,1722618644196,-1344.66,0.0001863,2]
[333904002,1722618644206,-500.0,0.0001863,2]
[333904004,1722618644216,-3207.96,0.0001863,2]
[333904006,1722618644227,-151.0,0.0001863,2]
[333904008,1722618644237,-500.0,0.0001863,2]
[333904009,1722618644246,-1927.71,0.0001863,2]
[333904011,1722618644256,-500.0,0.0001863,2]
[333904013,1722618644265,-151.0,0.0001863,2]
[333904015,1722618644275,-151.0,0.0001863,2]
[333904017,1722618644284,-151.0,0.0001863,2]
[333904019,1722618644294,-1289.39,0.0001863,2]
[333904021,1722618644303,-500.0,0.0001863,2]
[333904023,1722618644313,-151.0,0.0001863,2]
[333904025,1722618644323,-1131.5,0.0001863,2]
[333904027,1722618644333,-500.0,0.0001863,2]
[333904029,1722618644343,-151.0,0.0001863,2]
[333904031,1722618644355,-151.0,0.0001863,2]
[333904033,1722618644365,-500.0,0.0001863,2]
[333904035,1722618644375,-151.0,0.0001863,2]
[333904037,1722618644386,-694.82,0.0001863,2]
[333904039,1722618644397,-204.52436,0.0001863,2]
[333904041,1722618644407,-500.0,0.0001863,2]
[333904043,1722618644416,-500.0,0.0001863,2]
[333904045,1722618644426,-1241.19,0.0001863,2]
[333904047,1722618644437,-151.0,0.0001863,2]
[333904049,1722618644447,-264.15701,0.0001863,2]
[333904051,1722618644457,-522.62,0.0001863,2]
[333904053,1722618644467,-500.0,0.0001863,2]
[333904055,1722618644478,-1893.02,0.0001863,2]
[333904057,1722618644487,-500.0,0.0001863,2]
[333904059,1722618644498,-500.0,0.0001863,2]
[333904061,1722618644507,-1520.86,0.0001863,2]
[333904063,1722618644516,-151.0,0.0001863,2]
[333904065,1722618644526,-151.0,0.0001863,2]
[333904067,1722618644536,-500.0,0.0001863,2]
[333904069,1722618644545,-500.0,0.0001863,2]
[333904071,1722618644555,-500.0,0.0001863,2]
[333904073,1722618644565,-1648.03,0.0001863,2]
[333904075,1722618644576,-635.77,0.0001863,2]
[333904077,1722618644585,-1732.61,0.0001863,2]
[333904079,1722618644596,-614.64,0.0001863,2]
[333904081,1722618644606,-163.469564,0.0001863,2]
[333904083,1722618644617,-2895.42,0.0001863,2]
[333904085,1722618644627,-163.469564,0.0001863,2]
[333904087,1722618644637,-163.469564,0.0001863,2]
[333904089,1722618644647,-163.469564,0.0001863,2]
[333904091,1722618644658,-151.0,0.0001863,2]
[333904093,1722618644669,-163.469564,0.0001863,2]
[333904095,1722618644680,-151.0,0.0001863,2]
[333904097,1722618644691,-163.469564,0.0001863,2]
[333904099,1722618644702,-151.0,0.0001863,2]
[333904101,1722618644712,-1732.11,0.0001863,2]
[333904103,1722618644722,-163.469564,0.0001863,2]
[333904105,1722618644740,-369.37155141,0.0001863,2]
[333904107,1722618644750,-151.0,0.0001863,2]
[333904109,1722618644761,-2449.52,0.0001863,2]
[333904111,1722618644771,-1221.4,0.0001863,2]
[333904113,1722618644780,-151.0,0.0001863,2]
[333904115,1722618644790,-163.469564,0.0001863,2]
[333904117,1722618644800,-189.108,0.0001863,2]
[333904119,1722618644810,-1189.9,0.0001863,2]
[333904121,1722618644819,-163.469564,0.0001863,2]
[333904123,1722618644829,-500.0,0.0001863,2]
[333904125,1722618644839,-500.0,0.0001863,2]
[333904127,1722618644849,-163.469564,0.0001863,2]
[333904129,1722618644859,-163.469564,0.0001863,2]
[333904131,1722618644868,-163.469564,0.0001863,2]
[333904133,1722618644878,-163.469564,0.0001863,2]
[333904135,1722618644888,-500.0,0.0001863,2]
[333904137,1722618644898,-163.469564,0.0001863,2]
[333904139,1722618644909,-163.469564,0.0001863,2]
[333904141,1722618644919,-163.469564,0.0001863,2]
[333904143,1722618644928,-612.72,0.0001863,2]
[333904145,1722618644938,-163.469564,0.0001863,2]
[333904147,1722618644949,-4214.11,0.0001863,2]
[333904150,1722618644958,-163.469564,0.0001863,2]
[333904152,1722618644968,-1752.89,0.0001863,2]
[333904154,1722618644985,-575.38,0.0001863,2]
[333904155,1722618644995,-500.0,0.0001863,2]
[333904157,1722618645004,-500.0,0.0001863,2]
[333904159,1722618645015,-500.0,0.0001863,2]
[333904161,1722618645024,-1361.79,0.0001863,2]
[333904164,1722618645034,-151.0,0.0001863,2]
[333904166,1722618645044,-151.0,0.0001863,2]
[333904168,1722618645053,-500.0,0.0001863,2]
[333904169,1722618645063,-1787.15,0.0001863,2]
[333904172,1722618645072,-151.0,0.0001863,2]
[333904174,1722618645082,-601.76,0.0001863,2]
[333904176,1722618645092,-3183.1,0.0001863,2]
[333904178,1722618645101,-500.0,0.0001863,2]
[333904180,1722618645111,-563.94,0.0001863,2]
[333904182,1722618645120,-500.0,0.0001863,2]
[333904184,1722618645130,-151.0,0.0001863,2]
[333904186,1722618645139,-2842.04,0.0001863,2]
[333904188,1722618645149,-151.0,0.0001863,2]
[333904190,1722618645158,-500.0,0.0001863,2]
[333904192,1722618645167,-151.0,0.0001863,2]
[333904194,1722618645176,-151.0,0.0001863,2]
[333904195,1722618645186,-2023.33,0.0001863,2]
[333904198,1722618645196,-2264.61,0.0001863,2]
[333904199,1722618645206,-151.0,0.0001863,2]
[333904201,1722618645215,-2010.3,0.0001863,2]
[333904204,1722618645231,-393.49770439,0.0001863,2]
[333904206,1722618645240,-151.0,0.0001863,2]
[333904207,1722618645249,-151.0,0.0001863,2]
[333904210,1722618645259,-151.0,0.0001863,2]
[333904212,1722618645268,-151.0,0.0001863,2]
[333904213,1722618645278,-151.0,0.0001863,2]
[333904215,1722618645287,-151.0,0.0001863,2]
[333904218,1722618645297,-500.0,0.0001863,2]
[333904220,1722618645306,-151.0,0.0001863,2]
[333904222,1722618645315,-500.0,0.0001863,2]
[333904224,1722618645325,-151.0,0.0001863,2]
[333904226,1722618645334,-1139.19,0.0001863,2]
[333904228,1722618645345,-151.0,0.0001863,2]
[333904230,1722618645358,-802.84,0.0001863,2]
[333904232,1722618645367,-596.49,0.0001863,2]
[333904234,1722618645376,-151.0,0.0001863,2]
[333904236,1722618645386,-151.0,0.0001863,2]
[333904238,1722618645398,-201.781964,0.0001863,2]
[333904239,1722618645408,-841.2,0.0001863,2]
[333904241,1722618645417,-500.0,0.0001863,2]
[333904243,1722618645430,-500.0,0.0001863,2]
[333904245,1722618645441,-151.0,0.0001863,2]
[333904247,1722618645451,-500.0,0.0001863,2]
[333904249,1722618645460,-500.0,0.0001863,2]
[333904251,1722618645470,-731.27,0.0001863,2]
[333904253,1722618645483,-544.77,0.0001863,2]
[333904255,1722618645492,-1672.48,0.0001863,2]
[333904257,1722618645502,-3539.01,0.0001863,2]
[333904259,1722618645511,-4311.67,0.0001863,2]
[333904261,1722618645520,-500.0,0.0001863,2]
[333904263,1722618645530,-500.0,0.0001863,2]
[333904265,1722618645539,-3061.03578126,0.0001863,2]
[333904278,1722618645645,-13.11421874,0.0001863,2]
[333904280,1722618645655,-1951.13,0.0001863,2]
[333904282,1722618645664,-500.0,0.0001863,2]
[333904284,1722618645673,-500.0,0.0001863,2]
[333904286,1722618645683,-869.27,0.0001863,2]
[333904288,1722618645693,-500.0,0.0001863,2]
[333904290,1722618645702,-524.21,0.0001863,2]
[333904292,1722618645712,-500.0,0.0001863,2]
[333904293,1722618645722,-500.0,0.0001863,2]
[333904294,1722618645739,-500.0,0.0001863,2]
[333904295,1722618645754,-500.0,0.0001863,2]
[333904296,1722618645764,-828.8,0.0001863,2]
[333904297,1722618645774,-500.0,0.0001863,2]
[333904299,1722618645784,-1094.72,0.0001863,2]
[333904301,1722618645794,-1586.68,0.0001863,2]
[333904303,1722618645804,-769.28,0.0001863,2]
[333904305,1722618645814,-1425.7,0.0001863,2]
[333904307,1722618645823,-500.0,0.0001863,2]
[333904309,1722618645832,-151.0,0.0001863,2]
[333904311,1722618645842,-151.0,0.0001863,2]
[333904312,1722618645851,-151.0,0.0001863,2]
[333904314,1722618645861,-743.83,0.0001863,2]
[333904316,1722618645871,-500.0,0.0001863,2]
[333904318,1722618645880,-151.0,0.0001863,2]
[333904320,1722618645890,-151.0,0.0001863,2]
[333904322,1722618645900,-151.0,0.0001863,2]
[333904324,1722618645909,-151.0,0.0001863,2]
[333904326,1722618645919,-151.0,0.0001863,2]
[333904327,1722618645929,-151.0,0.0001863,2]
[333904329,1722618645940,-709.84,0.0001863,2]
[333904331,1722618645950,-359.22922256,0.0001863,2]
[333904334,1722618645965,-151.78077744,0.0001863,2]
[333904344,1722618645978,-500.0,0.0001863,2]
[333904345,1722618646095,-848.21922256,0.0001863,2]
[333904346,1722618646107,-1076.78426067,0.0001863,2]
[333904347,1722618646119,-591.39651677,0.0001863,2]
[333904348,1722618646128,-792.8679714,0.0001863,2]
[333904349,1722618646140,-423.49,0.0001863,2]
[333904350,1722618646152,-703.6720286,0.0001863,2]
[333904351,1722618646161,-196.3279714,0.0001863,2]
[333904352,1722618646639,-303.6720286,0.0001863,2]
[333904353,1722618646649,-500.0,0.0001863,2]
[333904354,1722618646659,-500.0,0.0001863,2]
[333904355,1722618646668,-2473.82978765,0.0001863,2]
[333904356,1722618646680,-879.03021235,0.0001863,2]
[333904357,1722618646689,-500.0,0.0001863,2]
[333904358,1722618646699,-192.38929696,0.0001863,2]
[333904359,1722618646710,-339.32070304,0.0001863,2]
[333904360,1722618646719,-532.59,0.0001863,2]
[333904361,1722618646730,-500.0,0.0001863,2]
[333904362,1722618646739,-879.7391554,0.0001863,2]
[333904363,1722618646811,-2233.1008446,0.0001863,2]
[333904364,1722618646821,-500.0,0.0001863,2]
[333904365,1722618646830,-500.0,0.0001863,2]
[333904366,1722618646839,-753.16,0.0001863,2]
[333904367,1722618646849,-500.0,0.0001863,2]
[333904368,1722618646858,-1107.72,0.0001863,2]
[333904369,1722618646867,-500.0,0.0001863,2]
[333904370,1722618646877,-1499.32,0.0001863,2]
[333904371,1722618646887,-2264.5,0.0001863,2]
[333904372,1722618646896,-151.394291,0.0001863,2]
[333904373,1722618646905,-510.23,0.0001863,2]
[333904374,1722618646916,-500.0,0.0001863,2]
[333904375,1722618646925,-500.0,0.0001863,2]
[333904376,1722618646934,-500.0,0.0001863,2]
[333904377,1722618646944,-534.73,0.0001863,2]
[333904378,1722618646954,-662.21,0.0001863,2]
[333904379,1722618646963,-500.0,0.0001863,2]
[333904380,1722618646972,-1298.96,0.0001863,2]
[333904381,1722618646983,-500.0,0.0001863,2]
[333904382,1722618646992,-1110.19,0.0001863,2]
[333904383,1722618647001,-1960.71,0.0001863,2]
[333904384,1722618647010,-500.0,0.0001863,2]
[333904385,1722618647020,-500.0,0.0001863,2]
[333904386,1722618647029,-500.0,0.0001863,2]
[333904387,1722618647039,-1327.54,0.0001863,2]
[333904388,1722618647049,-1359.6,0.0001863,2]
[333904389,1722618647058,-2160.76,0.0001863,2]
[333904390,1722618647068,-1121.99,0.0001863,2]
[333904391,1722618647077,-500.0,0.0001863,2]
[333904392,1722618647087,-500.0,0.0001863,2]
[333904393,1722618647096,-500.0,0.0001863,2]
[333904394,1722618647105,-1371.39,0.0001863,2]
[333904395,1722618647115,-1252.23,0.0001863,2]
[333904396,1722618647124,-500.0,0.0001863,2]
[333904397,1722618647134,-2096.5,0.0001863,2]
[333904398,1722618647143,-500.0,0.0001863,2]
[333904399,1722618647153,-500.0,0.0001863,2]
[333904400,1722618647162,-151.0,0.0001863,2]
[333904401,1722618647172,-151.0,0.0001863,2]
[333904402,1722618647182,-1297.43,0.0001863,2]
[333904403,1722618647192,-2340.24,0.0001863,2]
[333904404,1722618647202,-2509.78,0.0001863,2]
[333904405,1722618647212,-1715.26,0.0001863,2]
[333904406,1722618647221,-993.14,0.0001863,2]
[333904407,1722618647235,-151.0,0.0001863,2]
[333904408,1722618647244,-2354.89,0.0001863,2]
[333904409,1722618647254,-500.0,0.0001863,2]
[333904410,1722618647264,-1763.92,0.0001863,2]
[333904411,1722618647273,-500.0,0.0001863,2]
[333904412,1722618647283,-500.0,0.0001863,2]
[333904413,1722618647292,-500.0,0.0001863,2]
[333904414,1722618647301,-630.40667648,0.0001863,2]
[333904415,1722618647312,-500.0,0.0001863,2]
[333904416,1722618647322,-500.0,0.0001863,2]
[333904417,1722618647331,-500.0,0.0001863,2]
[333904418,1722618647341,-500.0,0.0001863,2]
[333904419,1722618647351,-500.0,0.0001863,2]
[333904421,1722618647365,-500.0,0.0001863,2]
[333904422,1722618647374,-1015.69,0.0001863,2]
[333904423,1722618647384,-500.0,0.0001863,2]
[333904424,1722618647395,-1455.57,0.0001863,2]
[333904425,1722618647404,-500.0,0.0001863,2]
[333904426,1722618647414,-879.95,0.0001863,2]
[333904427,1722618647423,-500.0,0.0001863,2]
[333904428,1722618647434,-479.28379204,0.0001863,2]
[333904429,1722618647444,-1873.17,0.0001863,2]
[333904430,1722618647454,-1541.5,0.0001863,2]
[333904431,1722618647464,-1334.31,0.0001863,2]
[333904432,1722618647474,-500.0,0.0001863,2]
[333904433,1722618647487,-1322.14798871,0.0001863,2]
[333904434,1722618647512,-779.30201129,0.0001863,2]
[333904435,1722618647523,-154.13230203,0.0001863,2]
[333904436,1722618647535,-1044.81314153,0.0001863,2]
[333904437,1722618647548,-737.71455644,0.0001863,2]
[333904438,1722618647558,-500.0,0.0001863,2]
[333904439,1722618647568,-212.06258588,0.0001863,2]
[333904440,1722618647578,-778.38,0.0001863,2]
[333904441,1722618647587,-500.0,0.0001863,2]
[333904442,1722618647596,-500.0,0.0001863,2]
[333904443,1722618647605,-374.05481284,0.0001863,2]
[333904444,1722618647617,-245.52518716,0.0001863,2]
[333904445,1722618647626,-2607.44971615,0.0001863,2]
[333904446,1722618647848,-419.71028385,0.0001863,2]
[333904447,1722618647857,-500.0,0.0001863,2]
[333904448,1722618647866,-710.83,0.0001863,2]
[333904449,1722618647875,-500.0,0.0001863,2]
[333904450,1722618647884,-584.74,0.0001863,2]
[333904451,1722618647893,-2271.52,0.0001863,2]
[333904452,1722618647902,-960.39,0.0001863,2]
[333904453,1722618647911,-500.0,0.0001863,2]
[333904454,1722618647920,-1036.42,0.0001863,2]
[333904455,1722618647929,-733.92,0.0001863,2]
[333904456,1722618647938,-1928.65,0.0001863,2]
[333904457,1722618647947,-614.65,0.0001863,2]
[333904458,1722618647957,-500.0,0.0001863,2]
[333904459,1722618647966,-500.0,0.0001863,2]
[333904460,1722618647977,-151.0,0.0001863,2]
[333904461,1722618647987,-151.0,0.0001863,2]
[333904462,1722618647996,-187.921304,0.0001863,2]
[333904463,1722618648005,-686.66,0.0001863,2]
[333904464,1722618648015,-2869.16,0.0001863,2]
[333904465,1722618648024,-759.49,0.0001863,2]
[333904466,1722618648034,-500.0,0.0001863,2]
[333904467,1722618648044,-590.16,0.0001863,2]
[333904468,1722618648054,-833.64,0.0001863,2]
[333904469,1722618648063,-617.93,0.0001863,2]
[333904470,1722618648073,-1045.12,0.0001863,2]
[333904471,1722618648082,-500.0,0.0001863,2]
[333904472,1722618648091,-3305.57,0.0001863,2]
[333904473,1722618648100,-521.15,0.0001863,2]
[333904474,1722618648110,-500.0,0.0001863,2]
[333904475,1722618648119,-1550.9,0.0001863,2]
[333904476,1722618648129,-677.97,0.0001863,2]
[333904477,1722618648139,-620.25,0.0001863,2]
[333904478,1722618648148,-500.0,0.0001863,2]
[333904479,1722618648158,-219.513687,0.0001863,2]
[333904480,1722618648167,-219.513687,0.0001863,2]
[333904481,1722618648177,-533.16,0.0001863,2]
[333904482,1722618648187,-219.513687,0.0001863,2]
[333904483,1722618648197,-219.513687,0.0001863,2]
[333904484,1722618648206,-500.0,0.0001863,2]
[333904485,1722618648216,-500.0,0.0001863,2]
[333904486,1722618648228,-219.513687,0.0001863,2]
[333904487,1722618648237,-219.513687,0.0001863,2]
[333904488,1722618648247,-1102.49,0.0001863,2]
[333904489,1722618648256,-219.513687,0.0001863,2]
[333904490,1722618648266,-744.67,0.0001863,2]
[333904491,1722618648276,-219.513687,0.0001863,2]
[333904492,1722618648285,-219.513687,0.0001863,2]
[333904493,1722618648294,-500.0,0.0001863,2]
[333904494,1722618648304,-636.8,0.0001863,2]
[333904495,1722618648313,-1303.15,0.0001863,2]
[333904496,1722618648323,-500.0,0.0001863,2]
[333904497,1722618648332,-219.513687,0.0001863,2]
[333904498,1722618648342,-219.513687,0.0001863,2]
[333904499,1722618648354,-219.513687,0.0001863,2]
[333904500,1722618648365,-219.513687,0.0001863,2]
[333904501,1722618648375,-1595.49,0.0001863,2]
[333904502,1722618648384,-219.513687,0.0001863,2]
[333904503,1722618648394,-500.0,0.0001863,2]
[333904504,1722618648404,-219.513687,0.0001863,2]
[333904505,1722618648413,-219.513687,0.0001863,2]
[333904506,1722618648422,-219.513687,0.0001863,2]
[333904507,1722618648433,-151.0,0.0001863,2]
[333904508,1722618648443,-219.513687,0.0001863,2]
[333904509,1722618648453,-626.97,0.0001863,2]
[333904510,1722618648463,-151.0,0.0001863,2]
[333904511,1722618648472,-2229.89,0.0001863,2]
[333904512,1722618648483,-151.0,0.0001863,2]
[333904513,1722618648492,-151.0,0.0001863,2]
[333904514,1722618648501,-151.0,0.0001863,2]
[333904515,1722618648511,-151.0,0.0001863,2]
[333904516,1722618648520,-151.0,0.0001863,2]
[333904517,1722618648531,-1229.54,0.0001863,2]
[333904518,1722618648541,-151.0,0.0001863,2]
[333904519,1722618648550,-151.0,0.0001863,2]
[333904520,1722618648560,-151.0,0.0001863,2]
[333904521,1722618648570,-1446.09,0.0001863,2]
[333904522,1722618648580,-151.0,0.0001863,2]
[333904523,1722618648589,-151.0,0.0001863,2]
[333904524,1722618648598,-3049.38,0.0001863,2]
[333904525,1722618648608,-237.59286,0.0001863,2]
[333904526,1722618648617,-500.0,0.0001863,2]
[333904527,1722618648626,-780.61,0.0001863,2]
[333904528,1722618648636,-1922.82,0.0001863,2]
[333904529,1722618648646,-376.10653574,0.0001863,2]
[333904530,1722618648655,-2084.14,0.0001863,2]
[333904531,1722618648665,-500.0,0.0001863,2]
[333904532,1722618648674,-500.0,0.0001863,2]
[333904533,1722618648684,-500.0,0.0001863,2]
[333904534,1722618648694,-966.61,0.0001863,2]
[333904535,1722618648703,-1514.57,0.0001863,2]
[333904536,1722618648714,-2796.94,0.0001863,2]
[333904537,1722618648725,-3755.02,0.0001863,2]
[333904538,1722618648735,-3238.9,0.0001863,2]
[333904539,1722618648744,-500.0,0.0001863,2]
[333904540,1722618648754,-1207.66,0.0001863,2]
[333904541,1722618648763,-500.0,0.0001863,2]
[333904542,1722618648773,-1241.99,0.0001863,2]
[333904543,1722618648783,-500.0,0.0001863,2]
[333904544,1722618648792,-1147.57,0.0001863,2]
[333904545,1722618648801,-500.0,0.0001863,2]
[333904546,1722618648811,-500.0,0.0001863,2]
[333904547,1722618648820,-500.0,0.0001863,2]
[333904548,1722618648830,-2277.19,0.0001863,2]
[333904549,1722618648839,-513.83,0.0001863,2]
[333904550,1722618648848,-500.0,0.0001863,2]
[333904551,1722618648858,-500.0,0.0001863,2]
[333904552,1722618648868,-2456.46,0.0001863,2]
[333904553,1722618648877,-1412.67,0.0001863,2]
[333904554,1722618648887,-500.0,0.0001863,2]
[333904555,1722618648896,-1067.76,0.0001863,2]
[333904556,1722618648906,-500.0,0.0001863,2]
[333904557,1722618648915,-1110.56,0.0001863,2]
[333904558,1722618648924,-2263.97,0.0001863,2]
[333904559,1722618648934,-500.0,0.0001863,2]
[333904560,1722618648944,-1050.97,0.0001863,2]
[333904561,1722618648954,-2978.93,0.0001863,2]
[333904562,1722618648964,-500.0,0.0001863,2]
[333904563,1722618648974,-409.962742,0.0001863,2]
[333904564,1722618648985,-409.962742,0.0001863,2]
[333904565,1722618648995,-409.962742,0.0001863,2]
[333904566,1722618649005,-409.962742,0.0001863,2]
[333904567,1722618649015,-409.962742,0.0001863,2]
[333904568,1722618649024,-409.962742,0.0001863,2]
[333904569,1722618649034,-409.962742,0.0001863,2]
[333904570,1722618649043,-409.962742,0.0001863,2]
[333904571,1722618649053,-847.9,0.0001863,2]
[333904572,1722618649063,-409.962742,0.0001863,2]
[333904573,1722618649072,-500.0,0.0001863,2]
[333904574,1722618649082,-409.962742,0.0001863,2]
[333904575,1722618649091,-882.44,0.0001863,2]
[333904576,1722618649102,-624.86,0.0001863,2]
[333904577,1722618649111,-409.962742,0.0001863,2]
[333904578,1722618649122,-1057.79,0.0001863,2]
[333904579,1722618649132,-500.0,0.0001863,2]
[333904580,1722618649143,-409.962742,0.0001863,2]
[333904581,1722618649154,-526.83,0.0001863,2]
[333904582,1722618649165,-409.962742,0.0001863,2]
[333904583,1722618649175,-409.962742,0.0001863,2]
[333904584,1722618649185,-409.962742,0.0001863,2]
[333904585,1722618649195,-409.962742,0.0001863,2]
[333904586,1722618649206,-500.0,0.0001863,2]
[333904587,1722618649216,-409.962742,0.0001863,2]
[333904588,1722618649228,-500.0,0.0001863,2]
[333904589,1722618649240,-599.35,0.0001863,2]
[333904590,1722618649251,-409.962742,0.0001863,2]
[333904591,1722618649262,-500.0,0.0001863,2]
[333904592,1722618649272,-4148.65,0.0001863,2]
[333904593,1722618649283,-500.0,0.0001863,2]
[333904594,1722618649293,-500.0,0.0001863,2]
[333904595,1722618649303,-500.0,0.0001863,2]
[333904596,1722618649313,-870.87,0.0001863,2]
[333904597,1722618649323,-500.0,0.0001863,2]
[333904598,1722618649333,-543.93,0.0001863,2]
[333904599,1722618649343,-500.0,0.0001863,2]
[333904600,1722618649355,-1609.89,0.0001863,2]
[333904601,1722618649367,-500.0,0.0001863,2]
[333904602,1722618649378,-500.0,0.0001863,2]
[333904603,1722618649388,-500.0,0.0001863,2]
[333904604,1722618649399,-500.0,0.0001863,2]
[333904605,1722618649409,-813.44,0.0001863,2]
[333904606,1722618649420,-500.0,0.0001863,2]
[333904607,1722618649430,-676.26,0.0001863,2]
[333904608,1722618649442,-2976.64,0.0001863,2]
[333904609,1722618649453,-268.77496514,0.0001863,2]
[333904610,1722618649464,-500.0,0.0001863,2]
[333904611,1722618649474,-621.66,0.0001863,2]
[333904612,1722618649493,-582.95,0.0001863,2]
[333904613,1722618649503,-1551.06571995,0.0001863,2]
[333904614,1722618650497,-30.06428005,0.0001863,2]
[333904615,1722618650507,-500.0,0.0001863,2]
[333904616,1722618650516,-500.0,0.0001863,2]
[333904617,1722618650527,-877.44,0.0001863,2]
[333904618,1722618650537,-500.0,0.0001863,2]
[333904619,1722618650546,-575.53,0.0001863,2]
[333904620,1722618650555,-2513.08,0.0001863,2]
[333904621,1722618650566,-500.0,0.0001863,2]
[333904622,1722618650575,-151.0,0.0001863,2]
[333904623,1722618650585,-2283.72,0.0001863,2]
[333904624,1722618650594,-151.0,0.0001863,2]
[333904625,1722618650603,-512.66844323,0.0001863,2]
[333904626,1722618650613,-500.0,0.0001863,2]
[333904627,1722618650622,-2339.03,0.0001863,2]
[333904628,1722618650632,-500.0,0.0001863,2]
[333904629,1722618650641,-1973.91,0.0001863,2]
[333904630,1722618650650,-500.0,0.0001863,2]
[333904631,1722618650660,-500.0,0.0001863,2]
[333904632,1722618650669,-500.0,0.0001863,2]
[333904633,1722618650678,-999.71,0.0001863,2]
[333904634,1722618650688,-3213.31,0.0001863,2]
[333904635,1722618650698,-595.24,0.0001863,2]
[333904636,1722618650707,-1169.2,0.0001863,2]
[333904637,1722618650716,-500.0,0.0001863,2]
[333904638,1722618650728,-1423.51,0.0001863,2]
[333904639,1722618650738,-500.0,0.0001863,2]
[333904640,1722618650747,-1668.12,0.0001863,2]
[333904641,1722618650756,-500.0,0.0001863,2]
[333904642,1722618650766,-500.0,0.0001863,2]
[333904643,1722618650776,-209.90842691,0.0001863,2]
[333904644,1722618650786,-989.44,0.0001863,2]
[333904645,1722618650795,-500.0,0.0001863,2]
[333904646,1722618650805,-500.13,0.0001863,2]